Cogmind - Beta 14 @@@ ROGUE MODE // 2024.12.30 @ 23:22:08 Player: meetlok Result: Destroyed by H-66 Slayer with Gauss Rifle Performance ------------- Evolutions (4) 2000 Regions Visited (8) 1600 Robots Destroyed (12) 60 Value Destroyed (107) 107 Prototype IDs (9) 180 Alien Tech Used (0) 0 Bonus (274) 274 TOTAL SCORE: 4221 Bonus ------- Follower Combat Kills 274 Cogmind --------- Core Integrity 0/850 Matter 285/300 Energy 77/100 System Corruption 0% Temperature Cool (0) Movement Core (100) Ox1 Location -6/Extension Parts ------- > --- POWER (2) -------- (None) > --- PROPULSION (4) --- (None) > --- UTILITY (7) ------ Advanced Terrain Scan Processor Improved Utility Shielding > --- WEAPON (2) ------- Power Maul > --- INVENTORY (5) ---- Angular Momentum Engine Small Storage Unit Great Axe Peak State ------------ > --- POWER ------------ Improved Deuterium Engine Enhanced Nuclear Core > --- PROPULSION ------- Cooled Airjet Linear Gravjet Linear Gravjet Improved Linear Gravjet > --- UTILITY ---------- Power Amplifier Advanced Weight Redist. System Improved Terrain Scanner Advanced Terrain Scan Processor Advanced ECM Suite Improved Medium Armor Plating System Shield > --- WEAPON ----------- Great Axe Spear > --- INVENTORY -------- Small Storage Unit Improved Sensor Array Improved Utility Shielding Power Maul [Rating: 68] Favorites ----------- Power Enhanced Nuclear Core Engine Light Ion Engine Power Core Enhanced Nuclear Core Propulsion Linear Gravjet Treads Improved Treads Leg Aluminum Leg Hover Unit Linear Gravjet Flight Unit Flight Unit Utility System Shield Device Improved Terrain Scanner Storage Small Storage Unit Processor Advanced Terrain Scan Processor Hackware System Shield Protection Utility Shielding Weapon Spear Energy Gun Backup Laser III Ballistic Gun Light Assault Rifle Special Weapon Mining Laser Impact Weapon Power Maul Slashing Weapon Axe Piercing Weapon Spear Build | -11 -10 -9 -8 -7 -7 -7 -6 -6 ------- Run | Yrd Mat Mat Mat Fac Was Fac Fac Ext Slots Evolved 8 | . . 2 2 2 . . 2 . Power 1 | . . . . . . . 1 . Propulsion 2 | . . . 1 1 . . . . Utility 5 | . . 2 1 1 . . 1 . Weapon . | . . . . . . . . . Parts Attached 58 | 6 10 11 5 8 1 9 2 6 Power 8 | 1 1 2 1 1 . . 1 1 Engine 6 | 1 1 2 1 . . . . 1 Core 2 | . . . . 1 . . 1 . Reactor . | . . . . . . . . . Propulsion 15 | 2 3 1 . 4 1 2 . 2 Treads 2 | . . . . . . . . 2 Leg 2 | 2 . . . . . . . . Wheel . | . . . . . . . . . Hover 6 | . . . . 3 1 2 . . Flight 5 | . 3 1 . 1 . . . . Utility 20 | 1 2 3 4 3 . 4 1 2 Device 9 | . 1 2 1 1 . 2 1 1 Storage 1 | 1 . . . . . . . . Processor 5 | . 1 1 2 1 . . . . Hackware 1 | . . . 1 . . . . . Protection 4 | . . . . 1 . 2 . 1 Artifact . | . . . . . . . . . Weapon 15 | 2 4 5 . . . 3 . 1 Energy Gun 4 | 1 1 2 . . . . . . Energy Cannon . | . . . . . . . . . Ballistic Gun 4 | 1 2 1 . . . . . . Ballistic Cannon . | . . . . . . . . . Launcher . | . . . . . . . . . Special Weapon 3 | . 1 2 . . . . . . Impact Weapon 1 | . . . . . . . . 1 Slashing Weapon 2 | . . . . . . 2 . . Piercing Weapon 1 | . . . . . . 1 . . Special Melee Weapon . | . . . . . . . . . Unidentified Prototypes 4 | . . 2 . 1 . 1 . . Parts Lost 24 | . 4 5 3 . . . . 12 Power 6 | . 1 1 1 . . . . 3 Propulsion 8 | . . 2 1 . . . . 5 Utility 8 | . 2 1 1 . . . . 4 Weapon 2 | . 1 1 . . . . . . Highest Loss Streak 6 | . 4 3 3 . . . . 6 To Critical Strikes . | . . . . . . . . . Average Slot Usage (%) 71 | . 77 61 42 43 78 99 99 67 Engine 3 | . 13 6 6 . . . . 2 Core 3 | . . . . . 7 7 13 5 Hover 12 | . . . . 2 17 29 26 16 Flight 5 | . 23 20 5 . . . . . Device 13 | . 7 10 9 8 15 17 25 16 Processor 10 | . 5 6 11 19 15 8 6 6 Hackware 4 | . . . 4 7 7 7 6 4 Protection 4 | . . . . 2 7 11 6 5 Energy Gun 2 | . 5 5 . . 7 1 . . Ballistic Gun 2 | . 12 5 5 . . . . . Special Weapon 1 | . 4 6 . . . . . . Slashing Weapon 2 | . . . . . . 6 6 4 Piercing Weapon 2 | . . . . . . 6 6 4 Peak Build Rating 68 | 6 7 11 16 33 46 59 67 68 Average Rating 29 | 5 5 7 10 16 37 53 66 44 On Entrance 25 | . 6 3 9 10 33 46 59 67 Naked Turns . | . . . . . . . . . Heaviest Build 36 | 14 14 7 10 10 14 25 31 36 Greatest Support 37 | 20 20 14 10 24 34 37 36 36 Greatest Overweight (x) 4 | 1 2 . 2 . . . . 4 Average Overweight (x) . | . . . . . . . . . Largest Inventory Capacity 8 | 8 8 5 5 5 5 5 5 5 Average Capacity 5 | 7 5 5 5 5 5 5 5 5 Most Carried 5 | 2 5 4 3 5 5 5 4 5 Average Carried 3 | 1 3 2 2 3 4 4 3 4 Final Capacity 8 | 8 5 5 5 5 5 5 5 5 Final Carried 5 | 2 3 2 3 4 5 5 4 3 Class Distribution -------------------- 72% | Mutant 20% | Sprinter 7% | Scavenger-Mutant Dominant Class ---------------- Scavenger-Mutant | -10/Materials Mutant | -9/Materials Mutant | -8/Materials Mutant | -7/Factory Mutant | -7/Waste Mutant | -7/Factory Sprinter | -6/Factory Sprinter | -6/Extension Resources | -11 -10 -9 -8 -7 -7 -7 -6 -6 ----------- Run | Yrd Mat Mat Mat Fac Was Fac Fac Ext Matter Collected 656 | 205 51 62 . 52 171 60 34 21 Remotely . | . . . . . . . . . Salvage Created 516 | . 51 35 . . . 120 34 276 Parts 26 | . 5 1 . . . 10 4 6 Haulers Intercepted . | . . . . . . . . . Recyclers Shooed . | . . . . . . . . . Parts Field Recycled . | . . . . . . . . . Retrieved Matter . | . . . . . . . . . Parts Self-Destructed . | . . . . . . . . . Prevented . | . . . . . . . . . Kills | -11 -10 -9 -8 -7 -7 -7 -6 -6 ------- Run | Yrd Mat Mat Mat Fac Was Fac Fac Ext Combat Hostiles Destroyed 4 | . 3 1 . . . . . . Guns 4 | . 3 1 . . . . . . Classes Destroyed 5 | . 1 1 . . . 3 . . Worker 2 | . . . . . . 2 . . Builder 3 | . . . . . . 1 2 . Recycler 3 | . . . . . . 1 . 2 Swarmer 3 | . 3 . . . . . . . Grunt 1 | . . 1 . . . . . . Best Kill Streak 3 | . 3 1 . . . 3 2 2 Combat Bots Only 3 | . 3 1 . . . . . . Max Kills in Single Turn 1 | . 1 1 . . . 1 1 1 Gunslinging . | . . . . . . . . . Exploded . | . . . . . . . . . Melee . | . . . . . . . . . Uniques/NPCs Destroyed . | . . . . . . . . . Combat | -11 -10 -9 -8 -7 -7 -7 -6 -6 -------- Run | Yrd Mat Mat Mat Fac Was Fac Fac Ext Hostile Shots Fired 398 | . 23 57 35 30 . 13 4 236 Missed 186 | . 5 33 17 13 . 10 . 108 Damage Taken 3323 | . 477 556 281 265 . 43 54 1647 Core 1351 | . 66 174 122 128 . . 12 849 Absorbed by Shields 88 | . . . . . . . . 88 Redirected to Shielding 44 | . . . . 4 . . . 40 Regen/Repaired (Parts) 84 | . 22 . . 43 19 . . . Core Remaining (%) 77 | 100 73 56 77 . . 81 . . Volleys Fired 46 | . 17 29 . . . . . . Largest 2 | . 2 2 . . . . . . Hottest 156 | . 120 156 . . . . . . Shots Fired 72 | . 34 38 . . . . . . Gun 36 | . 21 15 . . . . . . Cannon . | . . . . . . . . . Launcher . | . . . . . . . . . Special 36 | . 13 23 . . . . . . Kinetic 21 | . 17 4 . . . . . . Thermal 51 | . 17 34 . . . . . . Explosive . | . . . . . . . . . Electromagnetic . | . . . . . . . . . Robot Hit Streak 4 | . 4 3 . . . . . . Robot Miss Streak 2 | . 2 2 . . . . . . Penetration Max . | . . . . . . . . . Secondary Targets . | . . . . . . . . . Shots Hit Robots 21 | . 5 5 . . . 4 2 5 Core Hits 13 | . 3 2 . 1 . 3 1 3 Critical Kills . | . . . . . . . . . Critical Parts Destroyed . | . . . . . . . . . Critical Strikes 1 | . 1 . . . . . . . Burn 1 | . 1 . . . . . . . Melee Attacks 12 | . . . . . . 4 2 6 Impact . | . . . . . . . . . Slashing 8 | . . . . . . . 2 6 Piercing 4 | . . . . . . 4 . . Sneak Attacks 9 | . . . . . . 4 2 3 Combat Hostiles . | . . . . . . . . . Follow-up Attacks . | . . . . . . . . . Damage Inflicted 963 | . 64 56 26 28 . 247 186 356 Guns 120 | . 64 56 . . . . . . Cannons . | . . . . . . . . . Explosions . | . . . . . . . . . Melee 759 | . . . . . . 247 186 326 Ramming 84 | . . . 26 28 . . . 30 Kinetic 41 | . 28 13 . . . . . . Thermal 79 | . 36 43 . . . . . . Explosive . | . . . . . . . . . Electromagnetic . | . . . . . . . . . Impact . | . . . . . . . . . Slashing 512 | . . . . . . . 186 326 Piercing 247 | . . . . . . 247 . . Highest Corruption 12 | . 12 9 . . . . . . Average Corruption 9 | . 12 8 . . . . . . Corruption Purged . | . . . . . . . . . Corruption Blocked . | . . . . . . . . . Effects 5 | . 1 4 . . . . . . Message Errors 2 | . . 2 . . . . . . Matter Fused 1 | . 1 . . . . . . . Energy Discharges 1 | . . 1 . . . . . . Alerts 1 | . . 1 . . . . . . Overload Shots . | . . . . . . . . . Overflow Damage 190 | . . . . . . 22 64 104 Projectiles . | . . . . . . . . . Explosions . | . . . . . . . . . Melee 190 | . . . . . . 22 64 104 Knockbacks 2 | . . . . 2 . . . . Impact 2 | . . . . 2 . . . . Kinetic . | . . . . . . . . . Secondary . | . . . . . . . . . Self-Inflicted Damage 38 | . . . 12 13 . . . 13 Shots . | . . . . . . . . . Rammed 21 | . . . 6 7 . . . 8 Targets Rammed 21 | . . . 6 7 . . . 8 Kicked . | . . . . . . . . . Crushed . | . . . . . . . . . Highest Temperature 221 | . 221 193 . . 4 192 92 218 Average Temperature 65 | . 72 82 . . 3 40 38 91 Received Heat Transfer 649 | . 48 117 162 9 . 24 . 289 Effects 3 | . . . . . . . . 3 Interference 3 | . . . . . . . . 3 Siege Activations . | . . . . . . . . . Robots Corrupted . | . . . . . . . . . Combat Hostiles . | . . . . . . . . . Parts Fried . | . . . . . . . . . Impact Corruptions . | . . . . . . . . . Robots Melted . | . . . . . . . . . Combat Hostiles . | . . . . . . . . . Parts Melted 1 | . . 1 . . . . . . Heat Transferred 296 | . 185 111 . . . . . . Parts Sabotaged . | . . . . . . . . . Parts Stolen . | . . . . . . . . . Parts Stripped . | . . . . . . . . . Power Chain Reactions . | . . . . . . . . . Alert | -11 -10 -9 -8 -7 -7 -7 -6 -6 ------- Run | Yrd Mat Mat Mat Fac Was Fac Fac Ext Peak Influence 356 | . 208 286 168 117 53 153 84 356 Initial 118 | . . 70 118 73 38 . 31 40 Average 95 | . 121 199 132 69 27 43 39 163 Maximum Alert Level 1 | . 1 1 . . . . . 1 Low Security (%) 88 | 100 98 44 100 100 100 100 100 64 Level 1 11 | . 1 55 . . . . . 35 Level 2 . | . . . . . . . . . Level 3 . | . . . . . . . . . Level 4 . | . . . . . . . . . Level 5 . | . . . . . . . . . High Security . | . . . . . . . . . Max Security . | . . . . . . . . . Squads Dispatched 12 | . 4 2 . 1 . . . 5 Investigation 8 | . 1 2 . . . . . 5 Extermination . | . . . . . . . . . Reinforcement 4 | . 3 . . 1 . . . . Assault . | . . . . . . . . . Garrison . | . . . . . . . . . Intercept . | . . . . . . . . . Searches Triggered . | . . . . . . . . . Construction Impeded . | . . . . . . . . . Haulers Reinforced . | . . . . . . . . . Active Scanning Responses . | . . . . . . . . . Cargo Convoy Interrupts . | . . . . . . . . . Stealth | -11 -10 -9 -8 -7 -7 -7 -6 -6 --------- Run | Yrd Mat Mat Mat Fac Was Fac Fac Ext Distress Signals 11 | . 2 1 2 . . 3 . 3 Communications Jammed . | . . . . . . . . . Distress Signals . | . . . . . . . . . Times Spotted 108 | . 18 22 12 7 2 12 3 32 Peak Tracking Total 12 | . 8 9 12 5 2 6 3 12 Tactical Retreats 22 | . 3 4 1 3 . 5 . 6 Traps | -11 -10 -9 -8 -7 -7 -7 -6 -6 ------- Run | Yrd Mat Mat Mat Fac Was Fac Fac Ext Traps Triggered 7 | . . . . 2 . 2 1 2 Indirectly . | . . . . . . . . . Trap Hack Attempts . | . . . . . . . . . Triggered . | . . . . . . . . . Disarmed . | . . . . . . . . . Reprogrammed . | . . . . . . . . . Reused . | . . . . . . . . . Traps Extracted . | . . . . . . . . . Installed . | . . . . . . . . . Triggered . | . . . . . . . . . Machines | -11 -10 -9 -8 -7 -7 -7 -6 -6 ---------- Run | Yrd Mat Mat Mat Fac Was Fac Fac Ext Machines Disabled . | . . . . . . . . . Max in Single Turn . | . . . . . . . . . Garrison Access 1 | . . . 1 . . . . . Machines Repaired . | . . . . . . . . . Machines Dismantled . | . . . . . . . . . Machines Sabotaged . | . . . . . . . . . Overloaded Fab Kills . | . . . . . . . . . Hacking | -11 -10 -9 -8 -7 -7 -7 -6 -6 --------- Run | Yrd Mat Mat Mat Fac Was Fac Fac Ext Machines Accessed 31 | . 5 3 1 4 . 10 1 7 Terminals 22 | . 4 3 . 1 . 6 1 7 Fabricators 3 | . . . . 2 . 1 . . Repair Stations 2 | . 1 . . 1 . . . . Recycling Units 2 | . . . . . . 2 . . Scanalyzers . | . . . . . . . . . Garrison Access 2 | . . . 1 . . 1 . . Total Hacks 77 | . 19 10 2 5 . 20 3 18 Successful 30 | . 10 2 1 5 . 7 2 3 Failed 47 | . 9 8 1 . . 13 1 15 Catastrophic 10 | . . 2 . . . 5 1 2 Database Lockouts . | . . . . . . . . . Manual 13 | . 9 2 . 1 . 1 . . Terminals 60 | . 14 10 . 1 . 14 3 18 Fabricators 5 | . . . . 2 . 3 . . Repair Stations 7 | . 5 . . 2 . . . . Recycling Units 2 | . . . . . . 2 . . Scanalyzers . | . . . . . . . . . Garrison Access 3 | . . . 2 . . 1 . . Terminal Hacks 18 | . 6 2 . 1 . 4 2 3 Prototype ID Bank 2 | . . 1 . . . 1 . . Open Door 3 | . . . . . . . . 3 Open DSF 2 | . . . . 1 . 1 . . Terminal Index 1 | . 1 . . . . . . . Alert Level 1 | . . . . . . . 1 . Locate Traps 2 | . 1 1 . . . . . . Surveillance Status 1 | . 1 . . . . . . . Transport Status 1 | . 1 . . . . . . . Reinforcement Status 1 | . 1 . . . . . . . Recall Extermination 1 | . . . . . . . 1 . Hauler Manifests 2 | . 1 . . . . 1 . . Zone Layout 1 | . . . . . . 1 . . Fabricator Hacks 2 | . . . . 2 . . . . Network Status 1 | . . . . 1 . . . . Build 1 | . . . . 1 . . . . Repair Station Hacks 6 | . 4 . . 2 . . . . Scan Component 3 | . 2 . . 1 . . . . Repair 3 | . 2 . . 1 . . . . Recycling Unit Hacks 2 | . . . . . . 2 . . Report Inventory 2 | . . . . . . 2 . . Scanalyzer . | . . . . . . . . . Garrison Access Hacks 2 | . . . 1 . . 1 . . Unlock Access 1 | . . . . . . 1 . . Seal Access 1 | . . . 1 . . . . . Unauthorized Hacks . | . . . . . . . . . Terminals . | . . . . . . . . . Fabricators . | . . . . . . . . . Repair Stations . | . . . . . . . . . Recycling Units . | . . . . . . . . . Scanalyzers . | . . . . . . . . . Garrison Access . | . . . . . . . . . Data Cores Recovered . | . . . . . . . . . Used . | . . . . . . . . . Hacking Detections 25 | . 5 3 . 1 . 9 1 6 Full Trace Events 9 | . 2 2 . . . . . 5 Feedback Events 1 | . . 1 . . . . . . Corruption 1 | . . 1 . . . . . . Feedback Blocked . | . . . . . . . . . Robot Schematics Acquired . | . . . . . . . . . Robots Built . | . . . . . . . . . Authchips . | . . . . . . . . . Time . | . . . . . . . . . Total Robot Build Rating . | . . . . . . . . . Part Schematics Acquired . | . . . . . . . . . Parts Built 2 | . . . . 2 . . . . Authchips . | . . . . . . . . . Time 53 | . . . . 53 . . . . Total Part Build Rating 12 | . . . . 12 . . . . Parts Repaired 3 | . 2 . . 1 . . . . Time 108 | . 52 . . 56 . . . . Parts Recycled . | . . . . . . . . . Recycled Matter . | . . . . . . . . . Retrieved Matter . | . . . . . . . . . Retrieved Components . | . . . . . . . . . Parts Scanalyzed . | . . . . . . . . . Part Schematics Acquired . | . . . . . . . . . Parts Damaged . | . . . . . . . . . Bothacking | -11 -10 -9 -8 -7 -7 -7 -6 -6 ------------ Run | Yrd Mat Mat Mat Fac Was Fac Fac Ext Used RIF Installer . | . . . . . . . . . Robots Hacked . | . . . . . . . . . Non-combat . | . . . . . . . . . Combat . | . . . . . . . . . Robot Hacks Applied . | . . . . . . . . . Relay Couplers Released . | . . . . . . . . . Fabnet Peak Effective % . | . . . . . . . . . Robots Rewired . | . . . . . . . . . Allies Hacked . | . . . . . . . . . Hacks Repelled . | . . . . . . . . . Allies | -11 -10 -9 -8 -7 -7 -7 -6 -6 -------- Run | Yrd Mat Mat Mat Fac Was Fac Fac Ext Total Allies 26 | . . . . . 19 3 . 4 Largest Group 19 | . . . . . 19 3 3 2 Highest-Rated Group 475 | . . . . . 475 93 93 73 Highest-Rated Ally 39 | . . . . . 35 31 31 39 Total Orders . | . . . . . . . . . Ally Attacks 171 | . . . . . 107 1 7 56 Total Damage 5254 | . . . . . 4174 22 108 950 Kills 23 | . . . . . 12 . 1 10 Allies Corrupted . | . . . . . . . . . Allies Melted . | . . . . . . . . . Intel | -11 -10 -9 -8 -7 -7 -7 -6 -6 ------- Run | Yrd Mat Mat Mat Fac Was Fac Fac Ext Robot Analysis Total . | . . . . . . . . . Derelict Logs Recovered . | . . . . . . . . . Drone Launches . | . . . . . . . . . Drone Recoveries . | . . . . . . . . . Exploration | -11 -10 -9 -8 -7 -7 -7 -6 -6 ------------- Run | Yrd Mat Mat Mat Fac Was Fac Fac Ext Turns Passed 2745 | 112 312 341 164 549 145 625 137 360 Spaces Moved 3898 | 82 365 457 293 565 240 1126 151 619 Core 556 | 2 2 . 86 303 . . . 163 Treads . | . . . . . . . . . Legs 90 | 80 10 . . . . . . . Wheels . | . . . . . . . . . Hover 2235 | . . . . 262 240 1126 151 456 Flight 1017 | . 353 457 207 . . . . . Fastest Speed 30 | 50 37 34 35 36 32 32 30 30 Average Speed 39 | 123 39 36 40 44 34 34 30 39 Slowest Speed 250 | 190 150 40 150 50 36 38 30 250 Overloaded Moves . | . . . . . . . . . Propulsion Burnouts . | . . . . . . . . . Robots Hopped 10 | . 2 5 3 . . . . . Cave-ins Triggered 2 | . 1 1 . . . . . . Exploration Rate (%) 38 | 4 52 44 23 20 88 32 6 77 Regions Visited 8 Branch Regions 1 Pre-discovered Areas . | . . . . . . . . . Known Exits Taken . | . . . . . . . . . Unknown Exits Taken 6 | 1 1 1 1 . . 1 1 . Scrap Searched . | . . . . . . . . . Spaces Dug 36 | . 13 23 . . . . . . Terrain Destroyed 36 | . 13 23 . . . . . . Melee . | . . . . . . . . . Projectile 36 | . 13 23 . . . . . . AOE . | . . . . . . . . . Terrain Rammed . | . . . . . . . . . Walls Destroyed . | . . . . . . . . . Machines Disabled . | . . . . . . . . . Actions | -11 -10 -9 -8 -7 -7 -7 -6 -6 --------- Run | Yrd Mat Mat Mat Fac Was Fac Fac Ext Total 4916 | 90 471 541 334 859 302 1351 238 730 Wait 816 | . 71 40 32 271 57 193 83 69 Move 3872 | 81 360 447 286 565 239 1125 150 619 Hop 9 | . 2 4 3 . . . . . Pick Up 22 | 3 3 2 . 4 3 5 1 1 Fast Attach 37 | 5 6 7 4 6 1 6 . 2 Attach 18 | 1 3 3 1 2 . 2 2 4 Detach 16 | . 3 4 2 2 . 1 . 4 Swap 3 | . 1 1 . . . 1 . . Drop 26 | . 5 4 . 2 2 9 . 4 Fire 46 | . 17 29 . . . . . . Melee 12 | . . . . . . 4 2 6 Ram 21 | . . . 6 7 . . . 8 Kick . | . . . . . . . . . Crush . | . . . . . . . . . Escape Stasis 18 | . . . . . . 5 . 13 Rewire . | . . . . . . . . . Trap . | . . . . . . . . . Miscellaneous . | . . . . . . . . . Route ------- -11/Scrapyard -10/Materials (discovered 2 exits: *Mat / [*Min]) -9/Materials (discovered 2 exits: *Mat / [*Min]) -8/Materials (discovered 2 exits: *Fac / [*Sto]) -7/Factory -7/Waste -7/Factory (discovered 3 exits: *Fac / [*Low] / Gar) -6/Factory -6/Extension History --------- Turn | Location | Event 15 | -11/Scrapyard | Discovered new exit (range 16) 113 | -11/Scrapyard | Entered Materials 184 | -10/Materials | Repaired Flight Unit 211 | -10/Materials | Repaired Lgt. Assault Rifle 229 | -10/Materials | Discovered new exit (range 7) 416 | -10/Materials | Crushed by falling debris 416 | -10/Materials | System corruption reached 10% 422 | -10/Materials | Discovered new exit (range 6) 425 | -10/Materials | Entered another Materials area 425 | -9/Materials | Evolved 2 slots: Utility x2 447 | -9/Materials | Lost 4 parts (1p2u1w) 502 | -9/Materials | Discovered new exit (range 6) 622 | -9/Materials | Crushed by falling debris 653 | -9/Materials | Lost 3 parts (1p1n1u) 722 | -9/Materials | Build established: Mutant 761 | -9/Materials | Discovered new exit (range 16) 766 | -9/Materials | Entered another Materials area 766 | -8/Materials | Evolved 2 slots: Propulsion x1, Utility x1 766 | -8/Materials | Discovered new exit (range 7) 916 | -8/Materials | Discovered new exit (range 15) 930 | -8/Materials | Entered Factory 930 | -7/Factory | Evolved 2 slots: Propulsion x1, Utility x1 937 | -7/Factory | Lost 3 parts (1p1n1u) 1324 | -7/Factory | Fabricated Linear Gravjet (x2) 1419 | -7/Factory | Repaired Linear Gravjet? 1479 | -7/Factory | Sucked down chute 1479 | -7/Factory | Entered Waste 1480 | -7/Waste | Met a frightened Derelict 1491 | -7/Waste | Spotted C-40 Crusher 1506 | -7/Waste | Spotted C-40 Crusher 1509 | -7/Waste | Warlord forces began an assault 1570 | -7/Waste | Spotted C-40 Crusher 1570 | -7/Waste | Spotted C-40 Crusher 1570 | -7/Waste | Allies destroyed C-40 Crusher 1570 | -7/Waste | Allies destroyed C-40 Crusher 1572 | -7/Waste | Spotted C-40 Crusher 1573 | -7/Waste | Allies destroyed C-40 Crusher 1602 | -7/Waste | Discovered new exit (range 15) 1624 | -7/Waste | Entered Factory 1624 | -7/Factory | Accompanied by 1 ally 1635 | -7/Factory | Lost 11 allies 1698 | -7/Factory | Identified exit to DSF 1837 | -7/Factory | Identified exit to Garrison 2126 | -7/Factory | Allied Derelicts emerged from ambush trap array 2131 | -7/Factory | Discovered new exit (range 3) 2131 | -7/Factory | Discovered new exit (range 10) 2249 | -7/Factory | Entered another Factory area 2249 | -6/Factory | Accompanied by 3 allies 2249 | -6/Factory | Evolved 2 slots: Power x1, Utility x1 2369 | -6/Factory | Discovered new exit (range 11) 2386 | -6/Factory | Entered Extension 2420 | -6/Extension | Spotted B-75 Beast 2422 | -6/Extension | Spotted B-75 Beast 2436 | -6/Extension | Rescued a captive Derelict 2437 | -6/Extension | Rescued a captive Derelict 2538 | -6/Extension | Rescued a captive Derelict 2544 | -6/Extension | Build established: Sprinter 2612 | -6/Extension | Lost 6 parts (1p2n3u) 2657 | -6/Extension | Rescued a captive Derelict 2675 | -6/Extension | Lost 4 parts (1p2n1u) 2719 | -6/Extension | Core integrity fell below 50% 2734 | -6/Extension | Core integrity fell below 20% 2746 | -6/Extension | Destroyed by H-66 Slayer with Gauss Rifle Last Messages --------------- Dropped Spear. Acquired Angular Momentum Engine. Y-54 Guardian springs to life. Connecting with Door Terminal... ALERT: Suspicious activity at Terminal E007. Dispatching Investigation squad. Slammed into B-48 Gladiator. Destabilizing: Core damaged (-17). Slammed into G-50 Soldier. Slammed into B-48 Gladiator. Slammed into G-50 Soldier. Destabilizing: System interference. Adv. Terrain Scan Processor temporarily disabled. Slammed into G-50 Soldier. Adv. Terrain Scan Processor broken. Destabilizing: Short circuit. Penetrated by Slug. Imp. Treads destroyed. Penetrated by Slug. Map ----- +----------------------------------------------------+ | | | ???????????????????????????????? | | ???????????????????????????????? | | ??????########?????????????????? | | ??????# = #?????????????????? | | ??????# #?????????????????? | | #######= ########??????????? | | + [ + "??????????? | | ####### #### #T#??????????? | | ??????# / #??# ###??????????? | | ??????########??# #????????????? | | ????????????????# #????????????? | | ?????????#?????## ##???????????? | | ?????????# ### %########????? | | ??? %%%% #????? | | ?????????# ### %######g#????? | | ?????????#??#####/#####?# #????? | | ???????????## #?# #????? | | ???????????# """ !!! #?# #????? | | ???????????## "Y" !!! #?# #????? | | ????????????# !!! #?# #????? | | ????????????##" "#T####?# #????? | | ?????????????#"T"###????# #????? | | ?????????????#"""???????# #????? | | ?????????????####???????# #????? | | ????????????????????????#@#????? | | ????????????????????????# #????? | | ????????????????????????# #????? | | ????????????????????????#h#????? | | ????????????????????????#h#????? | | ????????????????????????# #????? | | ????????????????????????# #????? | | ????????????????????????# #????? | | ????????????????????????# #????? | | ????????????????????????? ?????? | | ????????????????????????? ?????? | | ????????????????????????? ?????? | | ????????????????????????? ?????? | | ????????????????????????? ?????? | | ????????????????????????? ?????? | | ????????????????????????? ?????? | | ???????????????????????????????? | | ???????????????????????????????? | | ???????????????????????????????? | | ???????????????????????????????? | | ???????????????????????????????? | | ???????????????????????????????? | | ???????????????????????????????? | | ???????????????????????????????? | | ???????????????????????????????? | +----------------------------------------------------+ Best States ------------- Heat Dissipation 37 Energy Generation 32 Energy Capacity 490 Matter Stores 300 Matter Capacity 300 Sight Range 16 Robot Scan Range 15 Terrain Scan Range 16 Terrain Scan Density 285 ECM Strength 2 Power Amplification 20 Additional Mass Support 9 Armor Coverage 225 Utility Shielding 66 Evasion (%) 63 Targeting Accuracy 6 Defensive Hacking 10 Item Schematics ----------------- None Robot Schematics ------------------ None Fabricated ------------ Linear Gravjet | x2 | -7/Factory | Preloaded Alien Tech Used ----------------- None Achievements -------------- Omniscient Cartographer Challenges ------------ None Game ------ Seed NeutrinoBottomlessMediator Manual? 0 Play Time 01:57:22 Cumulative 45.4 hours Start 2024.12.21 @ 23:51:41 End 2024.12.30 @ 23:22:08 Sessions 3 Manual Loads 0 Difficulty Rogue Special Mode None Game No. 28 Rogue 28 Adventurer 0 Explorer 0 Win Type - Total 0 Types 0/0/0/0/0/0/0/0/0 Lore% 11 Gallery% 27 Achievement% 20 Wizard Run 0 Options --------- Layout 1 ASCII 0 Keyboard 1 Movement Numpad Keybinds 0 Fullscreen 1 Font 24/Smallcaps Map View 50x35 Zoom Use 0% Tactical HUD 0 Map Filters NONE Filters NONE Steam 1 RUN: 5827cd9a-cc5b-49c0-9feb-a6a01f385532